Cogmind - Beta 13 @@@ ROGUE MODE // 2024.04.16 @ 20:08:23 Player: Olafz Result: Destroyed by S-10 Pest with Light Assault Rifle Performance ------------- Evolutions (0) 0 Regions Visited (2) 400 Robots Destroyed (8) 40 Value Destroyed (156) 156 Prototype IDs (3) 60 Alien Tech Used (0) 0 Bonus (0) 0 TOTAL SCORE: 656 Bonus ------- None Cogmind --------- Core Integrity 0/250 Matter 261/300 Energy 125/125 System Corruption 0% Temperature Cool (0) Movement Walking (120) Location -10/Mines Parts ------- > --- POWER (1) -------- Light Ion Engine > --- PROPULSION (2) --- Aluminum Leg Aluminum Leg > --- UTILITY (2) ------ Improved Heat Sink Small Storage Unit > --- WEAPON (2) ------- (None) > --- INVENTORY (8) ---- Light Ion Engine Core Shielding Small Laser Small Laser Peak State ------------ > --- POWER ------------ Light Ion Engine > --- PROPULSION ------- Aluminum Leg Aluminum Leg > --- UTILITY ---------- Improved Heat Sink Small Storage Unit > --- WEAPON ----------- Assault Rifle > --- INVENTORY -------- Light Ion Engine Core Shielding Small Laser Small Laser [Rating: 8] Favorites ----------- Power Light Ion Engine Engine Light Ion Engine Propulsion Light Treads Treads Light Treads Leg Aluminum Leg Utility Small Storage Unit Device Improved Heat Sink Storage Small Storage Unit Weapon Assault Rifle Energy Gun Small Laser Ballistic Gun Assault Rifle Build | -11 -10 -10 ------- Run | Yrd Mat Min Slots Evolved . | . . . Power . | . . . Propulsion . | . . . Utility . | . . . Weapon . | . . . Parts Attached 8 | . 6 2 Power 1 | . 1 . Engine 1 | . 1 . Core . | . . . Reactor . | . . . Propulsion 4 | . 2 2 Treads 2 | . 2 . Leg 2 | . . 2 Wheel . | . . . Hover . | . . . Flight . | . . . Utility 1 | . 1 . Device 1 | . 1 . Storage . | . . . Processor . | . . . Hackware . | . . . Protection . | . . . Artifact . | . . . Weapon 2 | . 2 . Energy Gun . | . . . Energy Cannon . | . . . Ballistic Gun 2 | . 2 . Ballistic Cannon . | . . . Launcher . | . . . Special Weapon . | . . . Impact Weapon . | . . . Slashing Weapon . | . . . Piercing Weapon . | . . . Special Melee Weapon . | . . . Unidentified Prototypes . | . . . Parts Lost 5 | . 4 1 Power 1 | . 1 . Propulsion 2 | . 2 . Utility . | . . . Weapon 2 | . 1 1 Highest Loss Streak 3 | . 3 2 To Critical Strikes . | . . . Average Slot Usage (%) 76 | . 75 85 Engine 10 | . 10 14 Treads 23 | . 24 . Leg 1 | . . 28 Device 2 | . 2 14 Storage 14 | . 14 14 Energy Gun 8 | . 9 . Ballistic Gun 14 | . 14 14 Naked Turns . | . . . Heaviest Build 11 | 11 11 . Greatest Support 40 | 20 40 . Greatest Overweight (x) 3 | . 3 . Average Overweight (x) . | . . . Largest Inventory Capacity 8 | . 8 8 Average Capacity 8 | . 8 8 Most Carried 6 | . 6 5 Average Carried 4 | . 4 4 Final Capacity 8 | 8 8 8 Final Carried 6 | 6 6 4 Class Distribution -------------------- 100% | Mutant Dominant Class ---------------- Mutant | -10/Materials Mutant | -10/Mines Resources | -11 -10 -10 ----------- Run | Yrd Mat Min Matter Collected 303 | 200 103 . Remotely . | . . . Salvage Created 229 | . 212 17 Parts 10 | . 9 1 Haulers Intercepted . | . . . Recyclers Shooed . | . . . Parts Field Recycled . | . . . Retrieved Matter . | . . . Parts Self-Destructed . | . . . Prevented . | . . . Kills | -11 -10 -10 ------- Run | Yrd Mat Min Combat Hostiles Destroyed 7 | . 6 1 Guns 7 | . 6 1 Classes Destroyed 3 | . 3 . Worker 1 | . 1 . Swarmer 4 | . 3 1 Grunt 3 | . 3 . Best Kill Streak 3 | . 3 1 Combat Bots Only 3 | . 3 1 Max Kills in Single Turn 1 | . 1 1 Gunslinging . | . . . Exploded . | . . . Melee . | . . . Uniques/NPCs Destroyed . | . . . Combat | -11 -10 -10 -------- Run | Yrd Mat Min Hostile Shots Fired 107 | . 94 13 Missed 32 | . 30 2 Damage Taken 915 | . 826 89 Core 250 | . 235 15 Absorbed by Shields . | . . . Core Remaining (%) 100 | 100 . . Volleys Fired 25 | . 22 3 Largest 2 | . 2 1 Hottest 60 | . 60 20 Shots Fired 37 | . 34 3 Gun 37 | . 34 3 Cannon . | . . . Launcher . | . . . Special . | . . . Kinetic 29 | . 26 3 Thermal 8 | . 8 . Explosive . | . . . Electromagnetic . | . . . Robot Hit Streak 9 | . 8 9 Robot Miss Streak 3 | . 3 1 Penetration Max . | . . . Secondary Targets 1 | . 1 . Max Gunslinging Chain 1 | . 1 . Shots Hit Robots 22 | . 20 2 Core Hits 12 | . 11 1 Critical Kills . | . . . Critical Parts Destroyed . | . . . Critical Strikes . | . . . Melee Attacks . | . . . Impact . | . . . Slashing . | . . . Piercing . | . . . Sneak Attacks . | . . . Combat Hostiles . | . . . Follow-up Attacks . | . . . Damage Inflicted 337 | . 301 36 Guns 337 | . 301 36 Cannons . | . . . Explosions . | . . . Melee . | . . . Ramming . | . . . Kinetic 306 | . 270 36 Thermal 31 | . 31 . Explosive . | . . . Electromagnetic . | . . . Impact . | . . . Slashing . | . . . Piercing . | . . . Highest Corruption . | . . . Average Corruption . | . . . Corruption Purged . | . . . Corruption Blocked . | . . . Overload Shots . | . . . Overflow Damage . | . . . Projectiles . | . . . Explosions . | . . . Melee . | . . . Knockbacks . | . . . Impact . | . . . Kinetic . | . . . Secondary . | . . . Self-Inflicted Damage . | . . . Shots . | . . . Rammed . | . . . Targets Rammed . | . . . Kicked . | . . . Crushed . | . . . Highest Temperature 42 | . 42 . Average Temperature 19 | . 19 . Received Heat Transfer 438 | . 438 . Siege Activations . | . . . Robots Corrupted . | . . . Combat Hostiles . | . . . Parts Fried . | . . . Impact Corruptions . | . . . Robots Melted . | . . . Combat Hostiles . | . . . Parts Melted . | . . . Heat Transferred 75 | . 75 . Parts Sabotaged . | . . . Parts Stolen . | . . . Parts Stripped . | . . . Power Chain Reactions . | . . . Alert | -11 -10 -10 ------- Run | Yrd Mat Min Peak Influence 136 | . 136 83 Initial 48 | . . 48 Average 69 | . 69 69 Maximum Alert Level . | . . . Low Security (%) 100 | . 100 100 Level 1 . | . . . Level 2 . | . . . Level 3 . | . . . Level 4 . | . . . Level 5 . | . . . High Security . | . . . Max Security . | . . . Squads Dispatched 1 | . 1 . Investigation 1 | . 1 . Extermination . | . . . Reinforcement . | . . . Assault . | . . . Garrison . | . . . Intercept . | . . . Searches Triggered . | . . . Construction Impeded . | . . . Haulers Reinforced . | . . . Active Scanning Responses . | . . . Cargo Convoy Interrupts . | . . . Stealth | -11 -10 -10 --------- Run | Yrd Mat Min Distress Signals 1 | . 1 . Communications Jammed . | . . . Distress Signals . | . . . Times Spotted 14 | . 11 3 Peak Tracking Total 5 | . 5 3 Tactical Retreats . | . . . Traps | -11 -10 -10 ------- Run | Yrd Mat Min Traps Triggered . | . . . Indirectly . | . . . Trap Hack Attempts . | . . . Triggered . | . . . Disarmed . | . . . Reprogrammed . | . . . Reused . | . . . Traps Extracted . | . . . Installed . | . . . Triggered . | . . . Machines | -11 -10 -10 ---------- Run | Yrd Mat Min Machines Disabled . | . . . Max in Single Turn . | . . . Machines Repaired . | . . . Machines Dismantled . | . . . Machines Sabotaged . | . . . Overloaded Fab Kills . | . . . Hacking | -11 -10 -10 --------- Run | Yrd Mat Min Machines Accessed 2 | . 2 . Terminals 2 | . 2 . Fabricators . | . . . Repair Stations . | . . . Recycling Units . | . . . Scanalyzers . | . . . Garrison Access . | . . . Total Hacks 7 | . 7 . Successful 5 | . 5 . Failed 2 | . 2 . Catastrophic 1 | . 1 . Database Lockouts . | . . . Manual 3 | . 3 . Terminals 7 | . 7 . Fabricators . | . . . Repair Stations . | . . . Recycling Units . | . . . Scanalyzers . | . . . Garrison Access . | . . . Terminal Hacks 3 | . 3 . Prototype ID Bank 2 | . 2 . Branch Access Points 1 | . 1 . Fabricator Hacks . | . . . Repair Station Hacks . | . . . Recycling Unit Hacks . | . . . Scanalyzer . | . . . Garrison Access Hacks . | . . . Unauthorized Hacks 2 | . 2 . Terminals 2 | . 2 . Botnet 2 | . 2 . Fabricators . | . . . Repair Stations . | . . . Recycling Units . | . . . Scanalyzers . | . . . Garrison Access . | . . . Data Cores Recovered . | . . . Used . | . . . Hacking Detections 2 | . 2 . Full Trace Events 1 | . 1 . Feedback Events . | . . . Feedback Blocked . | . . . Robot Schematics Acquired . | . . . Robots Built . | . . . Authchips . | . . . Time . | . . . Total Robot Build Rating . | . . . Part Schematics Acquired . | . . . Parts Built . | . . . Authchips . | . . . Time . | . . . Total Part Build Rating . | . . . Parts Repaired . | . . . Time . | . . . Parts Recycled . | . . . Recycled Matter . | . . . Retrieved Matter . | . . . Retrieved Components . | . . . Parts Scanalyzed . | . . . Part Schematics Acquired . | . . . Parts Damaged . | . . . Bothacking | -11 -10 -10 ------------ Run | Yrd Mat Min Used RIF Installer . | . . . Robots Hacked . | . . . Non-combat . | . . . Combat . | . . . Robot Hacks Applied . | . . . Relay Couplers Released . | . . . Fabnet Peak Effective % . | . . . Robots Rewired . | . . . Allies Hacked . | . . . Hacks Repelled . | . . . Allies | -11 -10 -10 -------- Run | Yrd Mat Min Total Allies . | . . . Largest Group . | . . . Highest-Rated Group . | . . . Highest-Rated Ally . | . . . Total Orders . | . . . Ally Attacks . | . . . Total Damage . | . . . Kills . | . . . Allies Corrupted . | . . . Allies Melted . | . . . Intel | -11 -10 -10 ------- Run | Yrd Mat Min Robot Analysis Total . | . . . Derelict Logs Recovered . | . . . Drone Launches . | . . . Drone Recoveries . | . . . Exploration | -11 -10 -10 ------------- Run | Yrd Mat Min Turns Passed 212 | . 204 8 Spaces Moved 87 | 1 86 . Core 3 | . 3 . Treads 83 | . 83 . Legs 1 | 1 . . Wheels . | . . . Hover . | . . . Flight . | . . . Fastest Speed 120 | 120 160 . Average Speed 160 | 120 161 . Slowest Speed 200 | 120 200 . Overloaded Moves . | . . . Propulsion Burnouts . | . . . Robots Hopped . | . . . Cave-ins Triggered . | . . . Exploration Rate (%) 12 | 2 30 4 Regions Visited 2 Branch Regions 1 Pre-discovered Areas . | . . . Known Exits Taken 1 | . 1 . Unknown Exits Taken 1 | 1 . . Scrap Searched . | . . . Spaces Dug . | . . . Terrain Destroyed . | . . . Melee . | . . . Projectile . | . . . AOE . | . . . Terrain Rammed . | . . . Walls Destroyed . | . . . Machines Disabled . | . . . Actions | -11 -10 -10 --------- Run | Yrd Mat Min Total 123 | . 118 5 Wait . | . . . Move 85 | . 85 . Hop . | . . . Pick Up 1 | . 1 . Fast Attach 2 | . 2 . Attach 4 | . 2 2 Detach 2 | . 2 . Swap 2 | . 2 . Drop 2 | . 2 . Fire 25 | . 22 3 Melee . | . . . Ram . | . . . Kick . | . . . Crush . | . . . Escape Stasis . | . . . Rewire . | . . . Trap . | . . . Miscellaneous . | . . . Route ------- -11/Scrapyard -10/Materials (discovered 2 exits: *Min x2) -10/Mines History --------- Turn | Location | Event 1 | -11/Scrapyard | Discovered new exit (range 0) 1 | -11/Scrapyard | Entered Materials 44 | -10/Materials | Identified exit to Mines 159 | -10/Materials | Core integrity fell below 50% 181 | -10/Materials | Lost 3 parts (1p1n1w) 197 | -10/Materials | Core integrity fell below 20% 205 | -10/Materials | Entered Mines 213 | -10/Mines | Destroyed by S-10 Pest with Light Assault Rifle Last Messages --------------- R-06 Scavenger collects Aluminum Leg. K-01 Serf collects debris. R-06 Scavenger collects Sml. Laser. K-01 Serf collects debris. Acquired Imp. Heat Sink. Acquired 54 matter. Acquired 49 matter. K-01 Serf collects debris. Acquired Lgt. Ion Engine. Critical hit (Burn: +37). K-01 Serf collects debris. Acquired Core Shielding. K-01 Serf collects debris. Lgt. Treads destroyed. K-01 Serf collects debris. LOCATION=MINES GOAL=ESCAPE Something is scanning the area. S-10 Pest destroyed. Assault Rifle destroyed. Map ----- +----------------------------------------------------+ | ?????????????????????????????????????????????????? | | ?????????????????????????????????????????????????? | | ?????????????????????????????????????????????????? | | ?????????????????????????????????????????????????? | | ?????????????????????????????????????????????????? | | ?????????????????????????????????????????????????? | | ?????????????????????????????????????????????????? | | ?????????????????????????????????????????????????? | | ?????????????????????????????????????????????????? | | ?????????????????????????????????????????????????? | | ?????????????????????????????????????????????????? | | ?????????????????????????????????????????????????? | | ?????????????????????????????????????????????????? | | ?????????????????????????????????????????????????? | | ?????????????????????????????????????????????????? | | ?????????????????????????????????????????????????? | | ?????????????????????????????????????????????????? | | ?????????????????????????????????????????????????? | | ?????????????????????????????????????????????????? | | ?????????????????????????????????????????????????? | | ?????????????????????????????????????????????????? | | ?????????????????????????????????????????????????? | | ??????????????????##########?????????????????????? | | ??????????????????# #?????????????????????? | | ??????????????????# """ #?????????????????????? | | ??????????????????# """ @ #?????????????????????? | | ??????????????????# """ #?????????????????????? | | ??????????????????# #?????????????????????? | | ??????????????????# """ #?????????????????????? | | ??????????????????# """ #?????????????????????? | | ??????????????????# """ #?????????????????????? | | ??????????????????# s #?????????????????????? | | ??????????????????? %s #?????????????????????? | | ??????????????????? [ ?????????????????????? | | ??????????????????? #?????????????????????? | | ???????????????????#########?????????????????????? | | ?????????????????????????????????????????????????? | | ?????????????????????????????????????????????????? | | ?????????????????????????????????????????????????? | | ?????????????????????????????????????????????????? | | ?????????????????????????????????????????????????? | | ?????????????????????????????????????????????????? | | ?????????????????????????????????????????????????? | | ?????????????????????????????????????????????????? | | ?????????????????????????????????????????????????? | | ?????????????????????????????????????????????????? | | ?????????????????????????????????????????????????? | | ?????????????????????????????????????????????????? | | ?????????????????????????????????????????????????? | | ?????????????????????????????????????????????????? | +----------------------------------------------------+ Best States ------------- Heat Dissipation 39 Energy Generation 10 Energy Capacity 125 Matter Stores 290 Matter Capacity 300 Sight Range 16 Terrain Scan Density 10 Evasion (%) 40 Recoil Reduction 2 Item Schematics ----------------- None Robot Schematics ------------------ None Fabricated ------------ Nothing Alien Tech Used ----------------- None Achievements -------------- None Challenges ------------ None Game ------ Seed ScrapArmorFlightbrick Manual? 0 Play Time 00:02:42 Cumulative 63.2 hours Start 2024.04.16 @ 20:05:56 End 2024.04.16 @ 20:08:23 Sessions 1 Manual Loads 0 Difficulty Rogue Special Mode None Game No. 137 Rogue 135 Adventurer 2 Explorer 0 Win Type - Total 0 Types 0/0/0/0/0/0/0/0/0 Lore% 40 Gallery% 45 Achievement% 33 Wizard Run 0 Options --------- Layout 0 ASCII 0 Keyboard 1 Movement Numpad Keybinds 1 Fullscreen 2 Font 18/SmallcapsGlow Map View 76x50 Zoom Use 0% Tactical HUD 0 Map Filters NONE Filters NONE Steam 1 RUN: 8320b2cf-6da1-47a0-9026-5fac57cf55cd